bitfinex/quotes_SOLUSD_20240628
["timestamp","ask_amount","ask_price","bid_price","bid_amount"]
[1719545721586,12.20929869,147.85,147.74,16.5528]
[1719545721895,6.7645,147.83,147.74,16.5528]
[1719545723301,26.7641,147.84,147.74,16.5528]
[1719545724110,20.0,147.84,147.74,16.5528]
[1719545724395,20.0,147.85,147.74,16.5528]
[1719545724695,12.34,147.81,147.75,12.34]
[1719545727368,12.34,147.84,147.74,16.5528]
[1719545727569,12.34,147.78,147.74,16.5528]
[1719545730281,6.7646,147.83,147.74,16.5528]
[1719545730499,12.34,147.79,147.74,16.5528]
[1719545731684,56.1241,147.84,147.74,16.5528]
[1719545731902,26.7636,147.85,147.74,16.5528]
[1719545732204,61.56844025,147.84,147.75,12.34]
[1719545732382,12.34,147.81,147.75,12.34]
[1719545732582,16.2686,147.87,147.76,12.34]
[1719545732782,12.34,147.82,147.76,12.34]
[1719545732998,12.34,147.82,147.74,16.5528]
[1719545733196,12.34,147.81,147.76,12.34]
[1719545733407,12.34,147.81,147.74,16.5528]
[1719545733719,12.34,147.81,147.76,12.34]
[1719545733924,49.36,147.84,147.75,12.34]
[1719545734086,12.34,147.81,147.74,16.5528]
[1719545734280,12.34,147.81,147.76,12.34]
[1719545734699,6.7636,147.85,147.76,12.34]
[1719545734889,12.34,147.81,147.76,12.34]
[1719545735511,26.7632,147.86,147.76,12.34]
[1719545735711,56.124,147.84,147.74,16.5528]
[1719545736017,56.124,147.84,147.74,28.8928]
[1719545736490,12.20914653,147.83,147.74,28.8928]
[1719545736700,56.124,147.84,147.74,28.8928]
[1719545737060,12.20943824,147.83,147.74,28.8928]
[1719545737317,56.124,147.84,147.74,28.8928]
[1719545737483,12.20955027,147.83,147.74,28.8928]
[1719545737682,56.124,147.84,147.74,28.8928]
[1719545737883,18.97415027,147.83,147.74,28.8928]
[1719545738118,6.7646,147.83,147.74,28.8928]
[1719545738287,12.20955027,147.82,147.74,16.5528]
[1719545738483,6.7646,147.83,147.74,16.5528]
[1719545738920,6.7646,147.83,147.74,28.8928]
[1719545739210,12.20955027,147.82,147.74,28.8928]
[1719545739407,6.7646,147.83,147.74,28.8928]
[1719545739658,12.20983153,147.82,147.74,28.8928]
[1719545739798,56.1244,147.84,147.74,16.5528]
[1719545739984,12.20983153,147.83,147.74,16.5528]
[1719545740181,12.20983153,147.82,147.74,16.5528]
[1719545740512,56.1241,147.84,147.74,28.8928]
[1719545740714,12.20955415,147.83,147.74,28.8928]
[1719545740922,6.7641,147.84,147.74,28.8928]
[1719545740923,12.34,147.79,147.74,28.8928]
[1719545741097,12.34,147.8,147.74,28.8928]
[1719545741799,56.1241,147.84,147.74,28.8928]
[1719545741985,12.20927751,147.83,147.74,28.8928]
[1719545742324,12.20927751,147.82,147.74,28.8928]
[1719545742484,6.7645,147.83,147.74,28.8928]
[1719545742814,12.20927327,147.82,147.74,28.8928]
[1719545742995,6.7645,147.83,147.74,28.8928]
[1719545743322,12.20927327,147.82,147.74,28.8928]
[1719545743531,12.20927327,147.81,147.74,28.8928]
[1719545743726,12.20927327,147.82,147.74,28.8928]
[1719545743933,6.7645,147.83,147.74,28.8928]
[1719545744100,12.20934305,147.82,147.74,28.8928]
[1719545744302,6.7645,147.83,147.74,28.8928]
[1719545744502,12.2092191,147.82,147.74,28.8928]
[1719545744806,12.2092191,147.81,147.74,28.8928]
[1719545745122,12.2092191,147.82,147.74,28.8928]
[1719545745337,12.20927327,147.81,147.74,28.8928]
[1719545745635,6.7645,147.83,147.74,28.8928]
[1719545745938,12.20927539,147.82,147.74,28.8928]
[1719545746097,12.20927539,147.81,147.74,28.8928]
[1719545746301,6.7645,147.83,147.74,28.8928]
[1719545746532,12.20927119,147.82,147.74,28.8928]
[1719545746700,12.20927119,147.81,147.74,28.8928]
[1719545746900,6.7645,147.83,147.74,28.8928]
[1719545747173,12.34,147.78,147.74,16.5528]
[1719545752442,12.34,147.77,147.74,16.5528]
[1719545753915,12.34,147.75,147.7,34.4354]
[1719545754945,12.34,147.76,147.7,34.4354]
[1719545757427,12.34,147.76,147.71,12.34]
[1719545758456,12.34,147.76,147.7,22.0954]
[1719545758669,12.34,147.76,147.7,34.4354]
[1719545758869,12.34,147.75,147.7,22.0954]
[1719545759232,12.34,147.75,147.7,34.4354]
[1719545759961,12.34,147.76,147.7,34.4354]
[1719545760262,12.34,147.76,147.7,22.0954]
[1719545760461,12.34,147.76,147.7,34.4354]
[1719545762361,12.34,147.75,147.7,22.0954]
[1719545762665,3.53955501,147.79,147.7,22.0954]
[1719545762841,12.21304367,147.78,147.71,12.34]
[1719545763038,12.34,147.77,147.71,12.34]
[1719545763943,12.34,147.76,147.71,12.34]
[1719545765354,12.34,147.76,147.7,22.0954]
[1719545765551,12.34,147.76,147.71,12.34]
[1719545766051,10.30565501,147.8,147.71,12.34]
[1719545766249,12.34,147.76,147.71,12.34]
[1719545768467,10.30565501,147.8,147.7,15.8981]
[1719545768468,12.34,147.72,147.7,15.8981]
[1719545768663,10.30665501,147.78,147.7,15.8981]
[1719545768880,12.34,147.72,147.7,15.8981]
[1719545769169,49.36,147.77,147.7,15.8981]
[1719545769383,12.34,147.72,147.7,15.8981]
[1719545770262,12.34,147.73,147.7,15.8981]
[1719545770941,12.34,147.72,147.7,15.8981]
[1719545771944,12.34,147.72,147.67,6.0351]
[1719545772175,12.34,147.72,147.67,18.3751]
[1719545772772,12.34,147.72,147.67,6.0351]
[1719545772955,12.34,147.72,147.67,18.3751]
[1719545773743,12.34,147.72,147.67,6.0351]
[1719545774057,12.34,147.72,147.67,18.3751]
[1719545774258,12.34,147.72,147.67,6.0351]
[1719545775084,12.34,147.71,147.67,6.0351]
[1719545775292,6.7681,147.76,147.66,15.5327]
[1719545775293,12.34,147.69,147.66,15.5327]
[1719545775573,12.34,147.68,147.66,15.5327]
[1719545775950,6.7687,147.74,147.66,15.5327]
[1719545776143,12.34,147.69,147.66,15.5327]
[1719545776358,12.34,147.68,147.66,15.5327]
[1719545776678,12.34,147.69,147.66,15.5327]
[1719545776863,12.34,147.68,147.66,15.5327]
[1719545777668,100.0,147.74,147.63,6.3784]
[1719545777848,49.36,147.7,147.63,6.3784]
[1719545778276,20.0,147.73,147.63,6.3784]
[1719545778459,12.34,147.68,147.63,6.3784]
[1719545778663,20.0,147.73,147.63,18.7184]
[1719545778873,20.0,147.75,147.65,12.34]
[1719545779075,12.34,147.72,147.66,28.3364]
[1719545779380,12.34,147.72,147.67,12.34]
[1719545780559,12.34,147.71,147.66,28.3364]
[1719545780881,12.34,147.7,147.66,15.9964]
[1719545782165,12.34,147.69,147.66,15.9964]
[1719545783084,12.34,147.7,147.66,15.9964]
[1719545785014,12.34,147.71,147.66,15.9964]
[1719545785575,12.34,147.7,147.66,15.9964]
[1719545785970,12.34,147.69,147.66,15.9964]
[1719545790899,12.34,147.71,147.66,28.3364]
[1719545791070,12.34,147.72,147.66,28.3364]
[1719545791977,12.34,147.71,147.66,15.9964]
[1719545792289,12.34,147.7,147.66,15.9964]
[1719545793100,12.34,147.71,147.66,15.9964]
[1719545796012,12.34,147.7,147.66,15.9964]
[1719545796206,12.34,147.69,147.66,15.9964]
[1719545796920,3.53641376,147.76,147.66,15.9964]
[1719545797121,12.34,147.69,147.66,15.9964]
[1719545797295,12.34,147.68,147.66,15.9964]
[1719545798525,12.34,147.67,147.62,16.0627]
[1719545798693,12.34,147.7,147.62,16.0627]
[1719545798694,12.34,147.64,147.62,16.0627]
[1719545798896,49.36,147.7,147.59,6.6463]
[1719545799116,12.34,147.61,147.59,6.6463]
[1719545799315,12.34,147.61,147.58,16.0627]
[1719545799618,12.34,147.6,147.58,16.0627]
[1719545799827,12.34,147.59,147.55,6.4652]
[1719545800302,19.1137,147.63,147.55,6.4652]
[1719545800303,12.34,147.57,147.55,6.4652]
[1719545801219,12.34,147.58,147.55,6.4652]
[1719545802291,6.7744,147.62,147.55,6.4652]
[1719545802292,12.34,147.57,147.55,6.4652]
[1719545802534,12.34,147.57,147.54,15.8818]
[1719545802991,12.34,147.56,147.54,15.8818]
[1719545804218,21.7862,147.66,147.54,15.8818]
[1719545804417,12.34,147.61,147.54,15.8818]
[1719545804629,12.34,147.61,147.56,12.34]
[1719545804797,20.0,147.65,147.55,12.34]
[1719545805000,12.34,147.61,147.56,12.34]
[1719545805717,12.34,147.63,147.54,15.8818]
[1719545805888,12.34,147.59,147.54,15.8818]
[1719545806092,12.34,147.6,147.55,12.34]
[1719545806543,12.34,147.61,147.56,12.34]
[1719545807932,12.34,147.61,147.55,12.34]
[1719545808302,6.7732,147.64,147.55,12.34]
[1719545808609,12.34,147.61,147.55,12.34]
[1719545808992,12.34,147.6,147.54,15.8818]
[1719545809192,12.34,147.6,147.55,12.34]
[1719545809800,12.34,147.6,147.54,28.2218]
[1719545810914,12.34,147.61,147.55,12.34]
[1719545811115,12.34,147.62,147.56,12.34]
[1719545811304,12.34,147.62,147.54,15.8818]
[1719545811507,12.34,147.62,147.56,12.34]
[1719545811924,12.34,147.62,147.57,12.34]
[1719545812927,7.06557746,147.69,147.58,18.9922]
[1719545813142,12.34,147.66,147.6,12.34]
[1719545813804,12.34,147.66,147.61,12.34]
[1719545814004,12.34,147.67,147.61,12.34]
[1719545815114,12.34,147.66,147.59,15.7163]
[1719545815423,12.34,147.66,147.61,12.34]
[1719545815634,12.34,147.66,147.59,15.7163]
[1719545815820,12.34,147.66,147.6,12.34]
[1719545817029,12.34,147.66,147.61,12.34]
[1719545819102,12.34,147.66,147.59,15.7163]
[1719545819436,12.34,147.66,147.6,12.34]
[1719545819601,12.34,147.65,147.6,12.34]
[1719545820007,12.34,147.64,147.59,15.7163]
[1719545820208,12.34,147.63,147.59,15.7163]
[1719545820438,12.34,147.64,147.59,15.7163]
[1719545820619,12.34,147.64,147.59,28.0563]
[1719545821406,12.34,147.64,147.59,12.34]
[1719545821608,12.34,147.63,147.55,16.2419]
[1719545821839,12.34,147.63,147.58,12.34]
[1719545822022,12.34,147.63,147.57,12.34]
[1719545822642,12.34,147.62,147.57,12.34]
[1719545824345,21.9726,147.65,147.56,32.34]
[1719545824346,12.34,147.61,147.56,32.34]
[1719545824641,12.34,147.6,147.55,16.2419]
[1719545824836,6.7741,147.62,147.55,16.2419]
[1719545825022,12.34,147.59,147.55,16.2419]
[1719545825807,12.34,147.6,147.55,28.5819]
[1719545826013,12.34,147.61,147.55,28.5819]
[1719545827922,12.34,147.6,147.55,28.5819]
[1719545828126,12.34,147.6,147.55,16.2419]
[1719545828338,19.1138,147.63,147.55,16.2419]
[1719545828519,12.34,147.59,147.55,16.2419]
[1719545830642,12.34,147.59,147.54,6.5812]
[1719545830813,12.34,147.59,147.54,18.9212]
[1719545831137,12.34,147.58,147.51,15.9821]
[1719545831336,12.34,147.58,147.52,32.34]
[1719545831917,22.25720761,147.65,147.54,12.34]
[1719545832126,12.34,147.6,147.54,12.34]
[1719545832324,22.25720761,147.65,147.55,12.34]
[1719545832525,12.34,147.62,147.56,12.34]
[1719545834159,12.34,147.61,147.56,12.34]
[1719545834655,6.7741,147.62,147.54,12.34]
[1719545834827,12.34,147.6,147.54,12.34]
[1719545835031,12.34,147.6,147.55,12.34]
[1719545835234,12.34,147.6,147.52,20.0]
[1719545835435,12.34,147.6,147.55,12.34]
[1719545835950,12.34,147.6,147.54,12.34]
[1719545836650,12.34,147.6,147.55,12.34]
[1719545837052,15.1995,147.65,147.52,20.0]
[1719545837291,12.34,147.62,147.56,12.34]
[1719545837553,12.34,147.61,147.56,12.34]
[1719545838158,12.34,147.6,147.55,12.34]
[1719545839241,12.34,147.6,147.52,20.0]
[1719545839560,12.34,147.6,147.54,12.34]
[1719545839733,12.34,147.6,147.55,12.34]
[1719545840359,12.34,147.61,147.55,12.34]
[1719545840661,12.34,147.6,147.52,20.0]
[1719545840830,12.34,147.6,147.55,12.34]
[1719545842235,12.34,147.61,147.55,12.34]
[1719545842742,12.34,147.6,147.55,12.34]
[1719545844444,15.1995,147.65,147.56,12.34]
[1719545844649,12.34,147.61,147.56,12.34]
[1719545848174,12.34,147.6,147.52,20.0]
[1719545848344,12.34,147.61,147.55,12.34]
[1719545848956,12.34,147.6,147.54,12.34]
[1719545849549,12.34,147.58,147.52,20.0]
[1719545849869,12.34,147.56,147.51,15.9821]
[1719545851047,12.34,147.56,147.51,28.3221]
[1719545851938,12.34,147.58,147.52,12.34]
[1719545852144,56.134,147.63,147.54,12.34]
[1719545852362,12.34,147.6,147.54,12.34]
[1719545852580,12.34,147.59,147.54,12.34]
[1719545853374,12.34,147.59,147.51,15.9821]
[1719545854261,12.34,147.59,147.54,12.34]
[1719545855743,12.34,147.59,147.51,15.9821]
[1719545855948,12.34,147.59,147.52,20.0]
[1719545857972,49.36,147.63,147.53,1.3555485]
[1719545858144,12.22544913,147.62,147.52,20.0]
[1719545858348,15.9289,147.64,147.56,12.34]
[1719545858549,12.34,147.62,147.56,12.34]
[1719545859273,12.34,147.61,147.55,12.34]
[1719545860172,12.34,147.61,147.56,12.34]
[1719545860369,22.7022,147.64,147.56,12.34]
[1719545860547,12.34,147.61,147.56,12.34]
[1719545862681,12.34,147.61,147.52,20.0]
[1719545862853,12.34,147.61,147.56,12.34]
[1719545868084,12.34,147.61,147.55,12.34]
[1719545868774,12.34,147.6,147.55,12.34]
[1719545879166,56.1337,147.63,147.54,12.34]
[1719545879371,12.22497452,147.62,147.54,12.34]
[1719545879585,12.22497452,147.61,147.54,12.34]
[1719545879795,52.91335875,147.63,147.54,12.34]
[1719545879994,12.22495941,147.62,147.55,12.34]
[1719545880180,12.34,147.6,147.55,12.34]
[1719545880775,12.34,147.6,147.54,12.34]
[1719545886611,12.34,147.6,147.55,12.34]
[1719545887471,12.34,147.62,147.56,12.34]
[1719545888274,19.48225875,147.64,147.58,12.34]
[1719545888510,15.9289,147.64,147.59,12.34]
[1719545890401,28.2689,147.64,147.59,12.34]
[1719545890783,15.9289,147.64,147.59,12.34]
[1719545890982,15.9289,147.64,147.6,12.34]
[1719545892119,15.9289,147.64,147.59,12.34]
[1719545893190,15.9289,147.64,147.56,12.34]
[1719545893382,28.2689,147.64,147.57,20.0]
[1719545893697,28.2689,147.64,147.59,12.34]
[1719545894075,15.9289,147.64,147.59,12.34]
[1719545894785,15.9289,147.64,147.57,20.0]
[1719545895101,15.9289,147.64,147.6,12.34]
[1719545895875,15.9289,147.64,147.57,20.0]
[1719545896095,12.34,147.63,147.57,20.0]
[1719545896296,12.34,147.63,147.58,12.34]
[1719545897212,12.34,147.63,147.52,20.0]
[1719545897380,12.34,147.63,147.58,12.34]
[1719545900579,12.34,147.61,147.56,12.34]
[1719545902611,22.7025,147.64,147.56,12.34]
[1719545902802,12.34,147.61,147.56,12.34]
[1719545904618,6.7737,147.63,147.52,20.0]
[1719545904788,12.34,147.59,147.54,12.34]
[1719545904992,12.34,147.6,147.54,12.34]
[1719545905915,12.34,147.6,147.55,12.34]
[1719545907717,12.34,147.61,147.56,12.34]
[1719545907903,12.34,147.62,147.56,12.34]
[1719545917527,12.34,147.61,147.56,12.34]
[1719545917908,12.34,147.61,147.52,20.0]
[1719545918320,12.34,147.61,147.56,12.34]
[1719545920837,12.34,147.62,147.56,12.34]
[1719545924147,12.34,147.62,147.57,12.34]
[1719545925413,15.9289,147.64,147.57,12.34]
[1719545925613,12.34,147.62,147.57,12.34]
[1719545925916,12.34,147.62,147.52,20.0]
[1719545926121,12.34,147.62,147.56,12.34]
[1719545926649,12.34,147.62,147.52,20.0]
[1719545926837,12.34,147.62,147.56,12.34]
[1719545929942,19.48648016,147.64,147.58,12.34]
[1719545930108,12.22417368,147.63,147.57,7.40164842]
[1719545930308,3.55758016,147.67,147.58,1.35487637]
[1719545930513,12.22191181,147.66,147.63,12.34]
[1719545930744,16.508,147.68,147.64,12.34]
[1719545933454,12.34,147.71,147.66,12.34]
[1719545933634,27.5257,147.72,147.67,12.34]
[1719545933956,15.1857,147.72,147.67,12.34]
[1719545934345,15.1857,147.72,147.62,21.9947]
[1719545934523,27.5257,147.72,147.67,12.34]
[1719545934727,27.5257,147.72,147.66,12.34]
[1719545938651,12.34,147.7,147.65,12.34]
[1719545939062,12.34,147.7,147.62,21.9947]
[1719545939358,12.34,147.7,147.65,12.34]
[1719545941427,12.34,147.71,147.65,12.34]
[1719545941846,12.34,147.71,147.66,12.34]
[1719545947756,15.1857,147.72,147.63,32.34]
[1719545947924,15.6511,147.77,147.65,6.495]
[1719545948132,15.6511,147.77,147.72,12.34]
[1719545948441,27.9911,147.77,147.72,12.34]
[1719545949644,12.34,147.76,147.71,12.34]
[1719545951946,27.9911,147.77,147.71,12.34]
[1719545952437,15.6511,147.77,147.71,12.34]
[1719545952638,27.9911,147.77,147.72,12.34]
[1719545953058,27.9911,147.77,147.66,1.35387588]
[1719545953243,12.34,147.74,147.66,20.0]
[1719545953432,12.34,147.74,147.68,12.34]
[1719545954856,12.34,147.74,147.69,12.34]
[1719545956664,6.7677,147.76,147.69,12.34]
[1719545956847,12.34,147.75,147.69,12.34]
[1719545957028,6.7677,147.76,147.69,12.34]
[1719545957233,12.34,147.75,147.69,12.34]
[1719545958666,12.34,147.75,147.66,20.0]
[1719545958849,12.34,147.75,147.69,12.34]
[1719545959053,12.34,147.74,147.69,12.34]
[1719545959258,6.7677,147.76,147.69,12.34]
[1719545959455,12.34,147.74,147.69,12.34]
[1719545961166,12.34,147.74,147.66,20.0]
[1719545961465,12.34,147.75,147.69,12.34]
[1719545963564,12.34,147.75,147.7,12.34]
[1719545966678,12.34,147.75,147.69,12.34]
[1719545967945,19.1077,147.76,147.7,12.34]
[1719545969347,6.7677,147.76,147.7,12.34]
[1719545969556,12.34,147.76,147.7,12.34]
[1719545970276,12.34,147.76,147.71,12.34]
[1719545972477,15.6511,147.77,147.71,12.34]
[1719545972679,27.9911,147.77,147.72,12.34]
[1719545973287,15.6511,147.77,147.72,12.34]
[1719545974763,27.9911,147.77,147.71,12.34]
[1719545974970,12.34,147.76,147.71,12.34]
[1719545975776,34.7585,147.77,147.71,12.34]
[1719545975956,12.21405438,147.76,147.71,12.34]
[1719545976151,27.9911,147.77,147.71,12.34]
[1719545976513,12.213704,147.76,147.71,12.34]
[1719545976784,27.9911,147.77,147.71,12.34]
[1719545976957,12.21370576,147.76,147.71,12.34]
[1719545977159,27.9911,147.77,147.71,12.34]
[1719545977468,12.21370788,147.76,147.71,12.34]
[1719545977783,27.9911,147.77,147.71,12.34]
[1719545977956,12.21377772,147.76,147.71,12.34]
[1719545978157,27.9911,147.77,147.71,12.34]
[1719545978362,12.2137756,147.76,147.71,12.34]
[1719545978686,27.9911,147.77,147.71,12.34]
[1719545978872,12.2137756,147.76,147.71,12.34]
[1719545979055,12.2137756,147.75,147.7,12.34]
[1719545980689,12.2137756,147.75,147.66,25.56847783]
[1719545980865,24.5537756,147.76,147.7,12.34]
[1719545981063,12.2137756,147.75,147.7,12.34]
[1719545981258,12.34,147.76,147.7,12.34]
[1719545981476,12.21484134,147.75,147.7,12.34]
[1719545981689,12.34,147.76,147.7,12.34]
[1719545981895,12.21490944,147.75,147.7,12.34]
[1719545982178,12.34,147.76,147.7,12.34]
[1719545982388,12.21489567,147.75,147.71,12.34]
[1719545982579,38.29261885,147.77,147.71,12.34]
[1719545982788,12.21489567,147.76,147.71,12.34]
[1719545982989,12.21489567,147.75,147.71,12.34]
[1719545983171,31.52521885,147.77,147.71,12.34]
[1719545983367,12.21490345,147.76,147.71,12.34]
[1719545983576,12.21490345,147.75,147.71,12.34]
[1719545983792,31.52521885,147.77,147.71,12.34]
[1719545983987,12.21490345,147.76,147.71,12.34]
[1719545984295,12.21490345,147.75,147.71,12.34]
[1719545984675,31.52521885,147.77,147.71,12.34]
[1719545984877,12.21482582,147.76,147.71,12.34]
[1719545985076,12.21482582,147.75,147.71,12.34]
[1719545985291,31.52521885,147.77,147.71,12.34]
[1719545985588,12.21488968,147.76,147.71,12.34]
[1719545985904,12.21488968,147.75,147.71,12.34]
[1719545986081,12.21488968,147.74,147.71,12.34]
[1719545986284,31.52521885,147.77,147.71,12.34]
[1719545986285,12.21488968,147.76,147.71,12.34]
[1719545986486,12.21488968,147.75,147.71,12.34]
[1719545986788,31.52521885,147.77,147.71,12.34]
[1719545986990,12.21482406,147.76,147.71,12.34]
[1719545987191,15.6511,147.77,147.72,12.34]
[1719545987424,12.21376997,147.76,147.72,12.34]
[1719545987778,15.6511,147.77,147.72,12.34]
[1719545987978,12.21377173,147.76,147.72,12.34]
[1719545988191,12.21377173,147.75,147.72,12.34]
[1719545988398,12.21377173,147.76,147.72,12.34]
[1719545988584,12.2137756,147.75,147.69,16.4189]
[1719545988781,12.21420315,147.74,147.71,12.34]
[1719545988988,12.34,147.76,147.7,12.34]
[1719545989185,19.18521885,147.77,147.7,12.34]
[1719545989186,24.55482969,147.75,147.7,12.34]
[1719545989386,12.21482969,147.74,147.7,12.34]
[1719545989583,12.34,147.76,147.7,12.34]
[1719545989784,12.21490167,147.75,147.7,12.34]
[1719545990014,12.21490167,147.74,147.7,12.34]
[1719545990298,12.34,147.76,147.7,12.34]
[1719545990490,12.21483181,147.75,147.69,16.4189]
[1719545990682,12.34,147.76,147.66,20.0]
[1719545990683,12.21483181,147.74,147.66,20.0]
[1719545990888,12.34,147.71,147.66,12.34]
[1719545991096,12.21769306,147.7,147.66,12.34]
[1719545991299,12.34,147.71,147.66,12.34]
[1719545991701,24.55770323,147.7,147.65,22.6489]
[1719545991892,12.34,147.7,147.65,28.4939]
[1719545995004,12.34,147.7,147.65,28.4939]
[1719545995700,13.41843771,147.75,147.61,21.5189]
[1719545995701,12.34,147.68,147.61,21.5189]
[1719545995917,12.34,147.68,147.63,12.34]
[1719545997682,12.34,147.68,147.62,20.0]
[1719545997882,12.34,147.68,147.63,12.34]
[1719546000408,23.2855,147.72,147.58,6.6615]
[1719546000409,22.34261885,147.7,147.58,6.6615]
[1719546000611,3.53411885,147.68,147.59,12.34]
[1719546000784,12.34,147.64,147.59,12.34]
[1719546000980,3.53411885,147.68,147.58,6.6615]
[1719546001185,12.34,147.69,147.63,12.34]
[1719546001996,6.4685,147.74,147.64,7.22554005]
[1719546002214,24.55714931,147.73,147.68,12.34]
[1719546002514,12.34,147.73,147.68,12.34]
[1719546004990,6.4685,147.74,147.68,12.34]
[1719546005191,12.34,147.73,147.68,12.34]
[1719546005386,25.35581885,147.76,147.68,12.34]
[1719546005601,12.34,147.74,147.68,12.34]
[1719546009328,25.35581885,147.76,147.69,12.34]
[1719546009500,12.34,147.74,147.69,12.34]
[1719546012216,25.37017336,147.76,147.69,12.34]
[1719546012393,18.98399715,147.75,147.69,12.34]
[1719546012922,12.21579715,147.74,147.69,12.34]
[1719546013224,6.7682,147.75,147.69,12.34]
[1719546013426,12.21573152,147.74,147.69,12.34]
[1719546013601,12.34,147.74,147.69,12.34]
[1719546014318,6.7682,147.75,147.69,12.34]
[1719546015023,6.7682,147.75,147.64,6.6615]
[1719546015322,12.21569052,147.74,147.69,12.34]
[1719546015531,6.7691,147.73,147.65,20.0]
[1719546015715,12.34,147.72,147.66,12.34]
[1719546016420,12.34,147.72,147.65,20.0]
[1719546016617,12.34,147.72,147.66,12.34]
[1719546017133,12.34,147.72,147.65,20.0]
[1719546017335,12.34,147.72,147.67,12.34]
[1719546017712,12.34,147.72,147.65,20.0]
[1719546017909,12.34,147.72,147.67,12.34]
[1719546018628,10.31677336,147.75,147.67,12.34]
[1719546018831,12.34,147.72,147.67,12.34]
[1719546018999,12.21593758,147.74,147.65,20.0]
[1719546019000,12.34,147.74,147.68,12.34]
[1719546020006,12.34,147.73,147.68,12.34]
[1719546020521,25.37017336,147.76,147.68,12.34]
[1719546020721,12.34,147.73,147.68,12.34]
[1719546025823,6.7683,147.75,147.68,12.34]
[1719546026141,24.55559854,147.74,147.68,12.34]
[1719546026321,12.34,147.74,147.68,12.34]
[1719546027945,9.69659206,147.77,147.69,1.35417972]
[1719546028120,9.69659206,147.77,147.71,12.34]
[1719546028121,12.34,147.77,147.71,12.34]
[1719546028331,12.34,147.77,147.72,12.34]
[1719546028511,12.34,147.78,147.72,12.34]
[1719546029447,12.34,147.77,147.72,12.34]
[1719546035158,3.5458614,147.81,147.73,12.34]
[1719546035451,3.5458614,147.81,147.72,16.356]
[1719546035452,12.34,147.8,147.75,12.34]
[1719546035660,6.7653,147.82,147.75,12.34]
[1719546036033,12.34,147.8,147.75,12.34]
[1719546038129,12.34,147.8,147.73,6.1724]
[1719546041541,6.7649,147.83,147.73,6.1724]
[1719546041849,12.34,147.81,147.73,6.1724]
[1719546042047,12.34,147.8,147.73,6.1724]
[1719546042729,6.765,147.82,147.73,6.1724]
[1719546042932,12.34,147.81,147.73,6.1724]
[1719546046736,6.7659,147.8,147.75,12.34]
[1719546046931,12.34,147.79,147.73,6.1724]
[1719546047144,12.34,147.79,147.73,18.5124]
[1719546048067,12.34,147.79,147.74,12.34]